[Event "TUR-ch Veterans 2019"]
[Site "Belek"]
[Date "2019.01.23"]
[Round "4.7"]
[White "Altinok, Metin"]
[Black "Cetinkaya, Vedat Ali"]
[Result "0-1"]
[ECO "B11"]
[WhiteElo "1647"]
[BlackElo "2056"]
[Annotator "NA"]
[PlyCount "162"]
[EventDate "2019.01.20"]
[EventType "swiss"]
[EventCountry "TUR"]
[SourceTitle "playchess.com"]
[Source "ChessBase"]
[SourceQuality "1"]
[TimeControl "5400+30"]

1. e4 {[%emt 0:00:30]} c6 {[%emt 0:00:30]} 2. Nc3 {[%emt 0:00:30]} d5 {[%emt 0:00:30]} 3. Nf3 {[%emt 0:00:00]} e6 {[%emt 0:02:30]} 4. Be2 {[%emt 0:04:00]} Nf6 {[%emt 0:04:30]} 5. exd5 {[%emt 0:04:30]} cxd5 {[%emt 0:01:30]} 6. O-O {[%emt 0:00:30]} Be7 {[%emt 0:00:30]} 7. Bb5+ {[%emt 0:01:30]} Nc6 {[%emt 0:01:30]} 8. d3 {[%emt 0:01:30]} O-O {[%emt 0:00:30]} 9. a3 {[%emt 0:02:30]} h6 {[%emt 0:06:30]} 10. Ne2 {[%emt 0:01:30]} Re8 {[%emt 0:03:30]} 11. c3 {[%emt 0:00:30]} Bd6 {[%emt 0:00:30]} 12. Ng3 {[%emt 0:01:30]} e5 {[%emt 0:00:30]} 13. Re1 {[%emt 0:01:30]} Ng4 {[%emt 0:11:30]} 14. c4 {[%emt 0:06:30]} Bc5 {[%emt 0:09:30]} 15. Rf1 {[%emt 0:05:30]} dxc4 {[%emt 0:08:30]} 16. Bxc4 {[%emt 0:01:30]} Qb6 {[%emt 0:03:30]} 17. Ne4 {[%emt 0:01:30]} Bf5 {[%emt 0:00:30]} 18. Nxc5 {[%emt 0:03:30]} Qxc5 {[%emt 0:00:30]} 19. h3 {[%emt 0:04:30]} Nf6 {[%emt 0:00:00]} 20. Be3 {[%emt 0:00:30]} Qd6 {[%emt 0:00:00]} 21. b4 {[%emt 0:02:30]} Nd5 {[%emt 0:05:30]} 22. Bc5 {[%emt 0:02:30]} Qd7 {[%emt 0:00:30]} 23. Re1 {[%emt 0:09:30]} b6 {[%emt 0:04:30]} 24. Be3 {[%emt 0:03:30]} Rad8 {[%emt 0:04:30]} 25. Rc1 {[%emt 0:09:30]} Qd6 {[%emt 0:08:30]} 26. Bb5 {[%emt 0:01:30]} Bd7 {[%emt 0:00:30]} 27. Nd2 {[%emt 0:01:30]} Qg6 {[%emt 0:02:54]} 28. Qf3 {[%emt 0:01:30]} Nce7 {[%emt 0:08:04]} 29. Bc4 {[%emt 0:03:30]} Bc6 {[%emt 0:00:37]} 30. Qe4 {[%emt 0:03:30]} Nf5 {[%emt 0:03:02]} 31. Qg4 {[%emt 0:01:30]} Qxg4 {[%emt 0:00:49]} 32. hxg4 {[%emt 0:00:30]} Nfxe3 {[%emt 0:00:05]} 33. fxe3 {[%emt 0:00:30]} Ne7 {[%emt 0:00:55]} 34. Nf3 {[%emt 0:01:30]} e4 {[%emt 0:01:33]} 35. Ne5 {[%emt 0:00:32]} Bd5 {[%emt 0:02:08]} 36. Bb5 {[%emt 0:00:35]} Rf8 {[%emt 0:00:24]} 37. dxe4 {[%emt 0:00:55]} Bxe4 {[%emt 0:00:17]} 38. Rc7 {[%emt 0:00:33]} Nd5 {[%emt 0:00:21]} 39. Rxa7 {[%emt 0:01:55]} Nc3 {[%emt 0:00:26]} 40. Bc4 {[%emt 0:01:13]} Rd2 {[%emt 0:00:20]} 41. Nf3 {[%emt 0:01:50]} Rc2 {[%emt 0:00:49]} 42. Rc7 {[%emt 0:01:09]} b5 {[%emt 0:00:27]} 43. Bf1 {[%emt 0:03:25]} Ne2+ {[%emt 0:00:49]} 44. Bxe2 {[%emt 0:00:39]} Rxc7 {[%emt 0:00:00]} 45. Bxb5 {[%emt 0:00:00]} Rc3 {[%emt 0:00:26]} 46. Ra1 {[%emt 0:02:04]} Rfc8 {[%emt 0:00:47]} 47. Kf2 {[%emt 0:01:08]} g5 {[%emt 0:00:33]} 48. Bf1 {[%emt 0:01:32]} Rb3 {[%emt 0:00:21]} 49. b5 {[%emt 0:00:47]} Rcc3 {[%emt 0:00:35]} 50. a4 {[%emt 0:00:45]} Ra3 {[%emt 0:00:13]} 51. Rd1 {[%emt 0:00:46]} Rxa4 {[%emt 0:00:46]} 52. Rd6 {[%emt 0:00:03]} Kg7 {[%emt 0:00:06]} 53. Rd7 {[%emt 0:00:48]} Ra2+ {[%emt 0:00:36]} 54. Kg3 {[%emt 0:00:13]} Rcc2 {[%emt 0:00:52]} 55. b6 {[%emt 0:00:47]} Rab2 {[%emt 0:00:14]} 56. Nd4 {[%emt 0:00:36]} Rc1 {[%emt 0:00:34]} 57. Re7 {[%emt 0:01:10]} Bg6 {[%emt 0:02:33]} 58. Be2 {[%emt 0:01:35]} Rxb6 {[%emt 0:00:18]} 59. Bf3 {[%emt 0:00:14]} Rd6 {[%emt 0:00:46]} 60. Ra7 {[%emt 0:01:00]} Re1 {[%emt 0:00:42]} 61. Kf2 {[%emt 0:00:35]} Rb1 {[%emt 0:00:22]} 62. Rc7 {[%emt 0:00:24]} Rb4 {[%emt 0:01:00]} 63. Ra7 {[%emt 0:00:25]} Rc4 {[%emt 0:01:20]} 64. Rb7 {[%emt 0:00:36]} Rf6 {[%emt 0:00:19]} 65. Kg3 {[%emt 0:00:32]} Rc3 {[%emt 0:00:12]} 66. Re7 {[%emt 0:00:13]} Kf8 {[%emt 0:00:16]} 67. Re5 {[%emt 0:00:11]} Ra3 {[%emt 0:00:41]} 68. e4 {[%emt 0:00:49]} Rb6 {[%emt 0:01:39]} 69. Nf5 {[%emt 0:00:02]} h5 {[%emt 0:00:22]} 70. Nd4 {[%emt 0:02:42]} h4+ {[%emt 0:00:27]} 71. Kf2 {[%emt 0:00:38]} Rb2+ {[%emt 0:00:09]} 72. Ne2 {[%emt 0:00:18]} f6 {[%emt 0:00:17]} 73. Rc5 {[%emt 0:00:22]} Raa2 {[%emt 0:00:31]} 74. Rc7 {[%emt 0:01:18]} Bxe4 {[%emt 0:00:23]} 75. Rc8+ {[%emt 0:00:47]} Ke7 {[%emt 0:00:03]} 76. Rc3 {[%emt 0:00:25]} Bxf3 {[%emt 0:00:23]} 77. Re3+ {[%emt 0:00:03]} Kd6 {[%emt 0:00:17]} 78. Kxf3 {[%emt 0:00:10]} Rd2 {[%emt 0:01:06]} 79. Nc3 {[%emt 0:00:38]} Rf2+ {[%emt 0:00:14]} 80. Ke4 {[%emt 0:00:25]} Rad2 {[%emt 0:00:39]} 81. Nb1 {[%emt 0:01:29]} Rf4# {[%emt 0:00:04]} 0-1

[Event "TUR-ch Veterans 2019"]
[Site "Belek"]
[Date "2019.01.23"]
[Round "4.8"]
[White "Taskiran, Erol"]
[Black "Tozaki, Halil"]
[Result "1/2-1/2"]
[ECO "D13"]
[WhiteElo "1758"]
[BlackElo "1930"]
[Annotator "NA"]
[PlyCount "118"]
[EventDate "2019.01.20"]
[EventType "swiss"]
[EventCountry "TUR"]
[SourceTitle "playchess.com"]
[Source "ChessBase"]
[SourceQuality "1"]
[TimeControl "5400+30"]

1. d4 {[%emt 0:02:30]} d5 {[%emt 0:00:30]} 2. c4 {[%emt 0:00:30]} c6 {[%emt 0:00:00]} 3. cxd5 {[%emt 0:01:30]} cxd5 {[%emt 0:00:00]} 4. Nc3 {[%emt 0:00:30]} Nf6 {[%emt 0:00:30]} 5. Nf3 {[%emt 0:00:30]} Nc6 {[%emt 0:00:30]} 6. Bf4 {[%emt 0:00:00]} a6 {[%emt 0:01:30]} 7. e3 {[%emt 0:01:00]} Bf5 {[%emt 0:01:30]} 8. Bd3 {[%emt 0:01:30]} Bxd3 {[%emt 0:00:30]} 9. Qxd3 {[%emt 0:00:30]} e6 {[%emt 0:00:00]} 10. O-O {[%emt 0:03:30]} Be7 {[%emt 0:06:00]} 11. Na4 {[%emt 0:04:30]} Nh5 {[%emt 0:00:30]} 12. Be5 {[%emt 0:02:30]} f6 {[%emt 0:01:30]} 13. Bg3 {[%emt 0:01:30]} Nxg3 {[%emt 0:00:30]} 14. hxg3 {[%emt 0:00:30]} Rc8 {[%emt 0:01:30]} 15. Nc5 {[%emt 0:07:30]} Bxc5 {[%emt 0:03:30]} 16. dxc5 {[%emt 0:00:30]} O-O {[%emt 0:02:30]} 17. Nd4 {[%emt 0:01:30]} Qe7 {[%emt 0:04:30]} 18. Nxc6 {[%emt 0:07:30]} Rxc6 {[%emt 0:01:30]} 19. b4 {[%emt 0:01:30]} a5 {[%emt 0:03:30]} 20. a3 {[%emt 0:00:30]} Ra8 {[%emt 0:00:30]} 21. Rfc1 {[%emt 0:02:30]} Qc7 {[%emt 0:04:30]} 22. e4 {[%emt 0:03:30]} dxe4 {[%emt 0:03:30]} 23. Qxe4 {[%emt 0:00:30]} f5 {[%emt 0:07:30]} 24. Qe3 {[%emt 0:05:30]} axb4 {[%emt 0:24:30]} 25. axb4 {[%emt 0:01:30]} Rxa1 {[%emt 0:01:30]} 26. Rxa1 {[%emt 0:00:30]} Qd7 {[%emt 0:04:30]} 27. Qf3 {[%emt 0:04:30]} Rc8 {[%emt 0:07:51]} 28. Ra7 {[%emt 0:04:30]} Rb8 {[%emt 0:03:46]} 29. Qe2 {[%emt 0:03:30]} Qd5 {[%emt 0:03:46]} 30. Ra1 {[%emt 0:10:30]} Rd8 {[%emt 0:00:52]} 31. Re1 {[%emt 0:01:30]} Kf7 {[%emt 0:01:57]} 32. Qh5+ {[%emt 0:00:30]} Kg8 {[%emt 0:00:27]} 33. Qe2 {[%emt 0:01:30]} Kf7 {[%emt 0:00:28]} 34. g4 {[%emt 0:01:30]} f4 {[%emt 0:01:34]} 35. f3 {[%emt 0:09:23]} Qd4+ {[%emt 0:01:45]} 36. Kf1 {[%emt 0:00:28]} Qd3 {[%emt 0:02:37]} 37. Kf2 {[%emt 0:04:38]} Qd4+ {[%emt 0:00:20]} 38. Kf1 {[%emt 0:01:12]} Qd3 {[%emt 0:00:01]} 39. Qxd3 {[%emt 0:03:51]} Rxd3 {[%emt 0:00:02]} 40. Re4 {[%emt 0:00:00]} Rb3 {[%emt 0:01:13]} 41. Rxf4+ {[%emt 0:00:58]} Ke7 {[%emt 0:00:10]} 42. Rd4 {[%emt 0:00:12]} Rb2 {[%emt 0:00:20]} 43. f4 {[%emt 0:01:04]} g6 {[%emt 0:00:18]} 44. Re4 {[%emt 0:01:25]} Kf6 {[%emt 0:00:13]} 45. g3 {[%emt 0:00:13]} h6 {[%emt 0:00:11]} 46. Rd4 {[%emt 0:00:27]} g5 {[%emt 0:00:29]} 47. f5 {[%emt 0:03:08]} Ke5 {[%emt 0:00:19]} 48. Rd6 {[%emt 0:00:18]} Rxb4 {[%emt 0:00:32]} 49. Rxe6+ {[%emt 0:00:57]} Kd5 {[%emt 0:00:08]} 50. Re8 {[%emt 0:00:20]} Rb1+ {[%emt 0:00:41]} 51. Ke2 {[%emt 0:01:26]} Rb2+ {[%emt 0:00:05]} 52. Kd3 {[%emt 0:00:10]} Kxc5 {[%emt 0:00:35]} 53. Re5+ {[%emt 0:00:33]} Kd6 {[%emt 0:00:09]} 54. Re6+ {[%emt 0:00:30]} Kd7 {[%emt 0:00:02]} 55. Rxh6 {[%emt 0:01:06]} Rb3+ {[%emt 0:00:05]} 56. Kc4 {[%emt 0:01:02]} Rxg3 {[%emt 0:00:08]} 57. Rh7+ {[%emt 0:00:10]} Kc6 {[%emt 0:00:38]} 58. Rh6+ {[%emt 0:00:05]} Kd7 {[%emt 0:00:00]} 59. Rh7+ {[%emt 0:00:06]} Kc6 {[%emt 0:00:00]} 1/2-1/2

[Event "TUR-ch Veterans 2019"]
[Site "Belek"]
[Date "2019.01.23"]
[Round "4.9"]
[White "Cosan, Gokmen"]
[Black "Bozkir, Dursun Murat"]
[Result "1/2-1/2"]
[ECO "D60"]
[WhiteElo "1727"]
[BlackElo "1684"]
[Annotator "NA"]
[PlyCount "102"]
[EventDate "2019.01.20"]
[EventType "swiss"]
[EventCountry "TUR"]
[SourceTitle "playchess.com"]
[Source "ChessBase"]
[SourceQuality "1"]
[TimeControl "5400+30"]

1. d4 {[%emt 0:00:30]} d5 {[%emt 0:00:30]} 2. c4 {[%emt 0:00:00]} e6 {[%emt 0:00:30]} 3. Nc3 {[%emt 0:00:00]} Nf6 {[%emt 0:00:00]} 4. Bg5 {[%emt 0:00:00]} Be7 {[%emt 0:00:00]} 5. e3 {[%emt 0:00:00]} O-O {[%emt 0:00:00]} 6. Nf3 {[%emt 0:00:30]} Nbd7 {[%emt 0:00:00]} 7. Bd3 {[%emt 0:00:30]} dxc4 {[%emt 0:00:30]} 8. Bxc4 {[%emt 0:00:00]} c5 {[%emt 0:00:00]} 9. O-O {[%emt 0:01:00]} cxd4 {[%emt 0:01:00]} 10. Nxd4 {[%emt 0:00:00]} Nb6 {[%emt 0:00:30]} 11. Bb3 {[%emt 0:00:00]} Nfd5 {[%emt 0:02:30]} 12. Bxe7 {[%emt 0:00:30]} Qxe7 {[%emt 0:01:30]} 13. Rc1 {[%emt 0:01:30]} Nxc3 {[%emt 0:00:30]} 14. Rxc3 {[%emt 0:01:30]} e5 {[%emt 0:11:30]} 15. Nb5 {[%emt 0:05:30]} Bd7 {[%emt 0:01:30]} 16. Qd6 {[%emt 0:04:30]} Qg5 {[%emt 0:01:30]} 17. h4 {[%emt 0:05:30]} Qf6 {[%emt 0:17:30]} 18. Qxf6 {[%emt 0:11:30]} gxf6 {[%emt 0:00:30]} 19. Nd6 {[%emt 0:00:30]} Bc6 {[%emt 0:00:30]} 20. Nf5 {[%emt 0:00:30]} Rae8 {[%emt 0:00:30]} 21. Rd1 {[%emt 0:00:30]} Nc8 {[%emt 0:00:30]} 22. Bd5 {[%emt 0:00:30]} Bxd5 {[%emt 0:04:30]} 23. Rxd5 {[%emt 0:00:30]} Ne7 {[%emt 0:00:30]} 24. Nxe7+ {[%emt 0:01:30]} Rxe7 {[%emt 0:00:00]} 25. Rcd3 {[%emt 0:00:30]} Kg7 {[%emt 0:00:00]} 26. Rd7 {[%emt 0:00:30]} Rfe8 {[%emt 0:00:30]} 27. b4 {[%emt 0:00:30]} Kf8 {[%emt 0:01:30]} 28. Kh2 {[%emt 0:01:30]} Rc8 {[%emt 0:00:30]} 29. Rd8+ {[%emt 0:06:30]} Rxd8 {[%emt 0:01:30]} 30. Rxd8+ {[%emt 0:00:30]} Kg7 {[%emt 0:01:30]} 31. g4 {[%emt 0:00:00]} Rc7 {[%emt 0:00:30]} 32. Kg3 {[%emt 0:00:00]} Rc2 {[%emt 0:18:30]} 33. Rd7 {[%emt 0:00:30]} Rxa2 {[%emt 0:01:30]} 34. Rxb7 {[%emt 0:00:00]} Rb2 {[%emt 0:00:30]} 35. b5 {[%emt 0:01:00]} Rb4 {[%emt 0:00:30]} 36. h5 {[%emt 0:01:30]} h6 {[%emt 0:02:30]} 37. Kf3 {[%emt 0:01:30]} Kf8 {[%emt 0:05:30]} 38. Ke2 {[%emt 0:08:30]} Kg7 {[%emt 0:03:30]} 39. f3 {[%emt 0:00:30]} Rb3 {[%emt 0:00:30]} 40. e4 {[%emt 0:12:30]} Ra3 {[%emt 0:00:30]} 41. Rd7 {[%emt 0:01:30]} a5 {[%emt 0:00:30]} 42. bxa6 {[%emt 0:08:30]} Rxa6 {[%emt 0:00:30]} 43. Rd3 {[%emt 0:00:00]} Ra8 {[%emt 0:03:30]} 44. Rb3 {[%emt 0:01:00]} Ra7 {[%emt 0:01:30]} 45. Ke3 {[%emt 0:00:30]} Ra8 {[%emt 0:00:00]} 46. f4 {[%emt 0:06:30]} exf4+ {[%emt 0:00:00]} 47. Kxf4 {[%emt 0:00:30]} Ra1 {[%emt 0:00:30]} 48. Re3 {[%emt 0:00:30]} Rf1+ {[%emt 0:00:30]} 49. Rf3 {[%emt 0:00:30]} Re1 {[%emt 0:00:00]} 50. Re3 {[%emt 0:01:30]} Rf1+ {[%emt 0:01:00]} 51. Rf3 {[%emt 0:00:30]} Re1 {[%emt 0:00:30]} 1/2-1/2

[Event "TUR-ch Veterans 2019"]
[Site "Belek"]
[Date "2019.01.23"]
[Round "4.10"]
[White "Ozates, Veysel"]
[Black "Yalciner, Suleyman"]
[Result "1-0"]
[ECO "C03"]
[WhiteElo "1550"]
[BlackElo "1491"]
[Annotator "NA"]
[PlyCount "61"]
[EventDate "2019.01.20"]
[EventType "swiss"]
[EventCountry "TUR"]
[SourceTitle "playchess.com"]
[Source "ChessBase"]
[SourceQuality "1"]
[TimeControl "5400+30"]

1. e4 {[%emt 0:00:30]} e6 {[%emt 0:00:30]} 2. d4 {[%emt 0:00:00]} d5 {[%emt 0:00:30]} 3. Nd2 {[%emt 0:00:00]} Be7 {[%emt 0:00:30]} 4. Bd3 {[%emt 0:00:30]} Nd7 {[%emt 0:00:30]} 5. e5 {[%emt 0:02:30]} c5 {[%emt 0:05:30]} 6. Qg4 {[%emt 0:03:30]} g6 {[%emt 0:01:30]} 7. c3 {[%emt 0:00:30]} Nh6 {[%emt 0:04:30]} 8. Qh3 {[%emt 0:01:30]} Nf5 {[%emt 0:00:30]} 9. Ne2 {[%emt 0:06:30]} O-O {[%emt 0:00:30]} 10. Nf3 {[%emt 0:03:30]} cxd4 {[%emt 0:00:30]} 11. cxd4 {[%emt 0:00:30]} f6 {[%emt 0:08:30]} 12. Nf4 {[%emt 0:08:30]} Nb6 {[%emt 0:09:30]} 13. g4 {[%emt 0:04:30]} Bb4+ {[%emt 0:15:30]} 14. Kf1 {[%emt 0:01:30]} Ne7 {[%emt 0:03:30]} 15. exf6 {[%emt 0:01:30]} Rxf6 {[%emt 0:00:30]} 16. Ng5 {[%emt 0:02:30]} h5 {[%emt 0:07:30]} 17. Nxh5 {[%emt 0:09:30]} Qf8 {[%emt 0:08:30]} 18. Nxf6+ {[%emt 0:00:30]} Qxf6 {[%emt 0:00:30]} 19. Qh7+ {[%emt 0:01:30]} Kf8 {[%emt 0:00:00]} 20. Nxe6+ {[%emt 0:00:30]} Bxe6 {[%emt 0:02:00]} 21. Bb5 {[%emt 0:06:30]} Bd7 {[%emt 0:06:30]} 22. Bxd7 {[%emt 0:03:30]} Nxd7 {[%emt 0:00:30]} 23. Be3 {[%emt 0:01:30]} Nb6 {[%emt 0:04:46]} 24. Kg2 {[%emt 0:02:30]} Nc6 {[%emt 0:01:51]} 25. a3 {[%emt 0:05:30]} Bd6 {[%emt 0:04:17]} 26. Rae1 {[%emt 0:05:30]} Ne7 {[%emt 0:05:54]} 27. h4 {[%emt 0:01:30]} Ke8 {[%emt 0:00:22]} 28. h5 {[%emt 0:06:30]} Nc4 {[%emt 0:03:01]} 29. hxg6 {[%emt 0:02:32]} Nxe3+ {[%emt 0:02:01]} 30. Rxe3 {[%emt 0:00:25]} Qxd4 {[%emt 0:00:22]} 31. Qh8+ {[%emt 0:01:38]} 1-0

[Event "TUR-ch Veterans 2019"]
[Site "Belek"]
[Date "2019.01.23"]
[Round "4.12"]
[White "Paksoy, Eray"]
[Black "Ozkoc, Ali"]
[Result "0-1"]
[ECO "D06"]
[WhiteElo "1460"]
[BlackElo "1773"]
[Annotator "NA"]
[PlyCount "94"]
[EventDate "2019.01.20"]
[EventType "swiss"]
[EventCountry "TUR"]
[SourceTitle "playchess.com"]
[Source "ChessBase"]
[SourceQuality "1"]
[TimeControl "5400+30"]

1. d4 {[%emt 0:00:30]} d5 {[%emt 0:00:30]} 2. c4 {[%emt 0:00:30]} c6 {[%emt 0:00:30]} 3. Nc3 {[%emt 0:00:30]} Nf6 {[%emt 0:00:30]} 4. Nf3 {[%emt 0:00:00]} Bf5 {[%emt 0:02:30]} 5. Bg5 {[%emt 0:04:00]} e6 {[%emt 0:00:30]} 6. e3 {[%emt 0:00:30]} Be7 {[%emt 0:01:30]} 7. Qb3 {[%emt 0:01:30]} b6 {[%emt 0:08:30]} 8. Ne5 {[%emt 0:00:30]} O-O {[%emt 0:02:30]} 9. Rc1 {[%emt 0:04:30]} Nfd7 {[%emt 0:00:30]} 10. Bxe7 {[%emt 0:04:30]} Qxe7 {[%emt 0:00:30]} 11. f4 {[%emt 0:02:30]} Nxe5 {[%emt 0:01:30]} 12. fxe5 {[%emt 0:03:30]} Qh4+ {[%emt 0:01:30]} 13. g3 {[%emt 0:00:30]} Qg5 {[%emt 0:00:00]} 14. Kd2 {[%emt 0:13:30]} Nd7 {[%emt 0:06:00]} 15. cxd5 {[%emt 0:00:30]} exd5 {[%emt 0:01:30]} 16. Bd3 {[%emt 0:02:30]} Bxd3 {[%emt 0:05:30]} 17. Kxd3 {[%emt 0:00:30]} a5 {[%emt 0:01:30]} 18. Rhf1 {[%emt 0:09:30]} b5 {[%emt 0:02:30]} 19. Qd1 {[%emt 0:08:30]} Qg6+ {[%emt 0:01:30]} 20. Kd2 {[%emt 0:01:30]} Nb6 {[%emt 0:04:30]} 21. b3 {[%emt 0:02:30]} a4 {[%emt 0:05:30]} 22. Qc2 {[%emt 0:16:30]} Qh6 {[%emt 0:01:30]} 23. Rf2 {[%emt 0:01:30]} axb3 {[%emt 0:01:30]} 24. axb3 {[%emt 0:01:30]} Rac8 {[%emt 0:05:30]} 25. Ne2 {[%emt 0:02:31]} Nd7 {[%emt 0:02:30]} 26. Qf5 {[%emt 0:00:29]} Rc7 {[%emt 0:09:30]} 27. Nf4 {[%emt 0:00:35]} g6 {[%emt 0:13:30]} 28. Qg4 {[%emt 0:00:53]} f5 {[%emt 0:00:30]} 29. Qd1 {[%emt 0:07:33]} Rfc8 {[%emt 0:03:26]} 30. Ne6 {[%emt 0:04:03]} Rb7 {[%emt 0:02:33]} 31. h4 {[%emt 0:00:13]} Nf8 {[%emt 0:05:04]} 32. Nf4 {[%emt 0:02:11]} Rd7 {[%emt 0:03:48]} 33. Ke1 {[%emt 0:00:35]} g5 {[%emt 0:00:38]} 34. hxg5 {[%emt 0:02:09]} Qxg5 {[%emt 0:00:04]} 35. Kd2 {[%emt 0:00:00]} Qe7 {[%emt 0:02:37]} 36. Rc5 {[%emt 0:00:25]} Qg5 {[%emt 0:01:21]} 37. Rh2 {[%emt 0:00:46]} Ra7 {[%emt 0:00:30]} 38. Qc2 {[%emt 0:00:21]} Rca8 {[%emt 0:00:14]} 39. Kc3 {[%emt 0:02:24]} Qd8 {[%emt 0:00:52]} 40. Qxf5 {[%emt 0:00:26]} Ra2 {[%emt 0:00:50]} 41. Rxa2 {[%emt 0:01:05]} Rxa2 {[%emt 0:00:11]} 42. Nd3 {[%emt 0:00:32]} Qa5+ {[%emt 0:00:56]} 43. Nb4 {[%emt 0:00:17]} Rg2 {[%emt 0:00:43]} 44. Qg5+ {[%emt 0:01:50]} Ng6 {[%emt 0:00:00]} 45. Rxc6 {[%emt 0:00:40]} Qa1+ {[%emt 0:00:00]} 46. Kd3 {[%emt 0:00:19]} Qd1+ {[%emt 0:00:00]} 47. Kc3 {[%emt 0:00:19]} Qd2# {[%emt 0:00:00]} 0-1

[Event "TUR-ch Veterans 2019"]
[Site "Belek"]
[Date "2019.01.23"]
[Round "4.13"]
[White "Yuksel, Mustafa"]
[Black "Muratoglu, Salih"]
[Result "1-0"]
[ECO "B07"]
[WhiteElo "2031"]
[BlackElo "1950"]
[Annotator "NA"]
[PlyCount "58"]
[EventDate "2019.01.20"]
[EventType "swiss"]
[EventCountry "TUR"]
[SourceTitle "playchess.com"]
[Source "ChessBase"]
[SourceQuality "1"]
[TimeControl "5400+30"]

1. d4 {[%emt 0:00:30]} Nf6 {[%emt 0:01:30]} 2. Bf4 {[%emt 0:00:00]} d6 {[%emt 0:00:00]} 3. Nc3 {[%emt 0:00:00]} c6 {[%emt 0:00:00]} 4. e4 {[%emt 0:00:00]} Qa5 {[%emt 0:01:30]} 5. e5 {[%emt 0:10:00]} dxe5 {[%emt 0:01:30]} 6. dxe5 {[%emt 0:00:30]} Ng4 {[%emt 0:03:30]} 7. Nf3 {[%emt 0:02:30]} Qb6 {[%emt 0:01:30]} 8. Qd2 {[%emt 0:00:30]} Qxb2 {[%emt 0:05:30]} 9. Rd1 {[%emt 0:02:30]} Bd7 {[%emt 0:03:30]} 10. e6 {[%emt 0:01:30]} fxe6 {[%emt 0:04:30]} 11. Bxb8 {[%emt 0:00:30]} Nf6 {[%emt 0:08:30]} 12. Be5 {[%emt 0:00:30]} O-O-O {[%emt 0:04:30]} 13. Nb5 {[%emt 0:01:30]} Qxa2 {[%emt 0:02:30]} 14. Nc3 {[%emt 0:06:30]} Qa5 {[%emt 0:00:30]} 15. Bc4 {[%emt 0:00:30]} Nd5 {[%emt 0:01:30]} 16. O-O {[%emt 0:00:30]} Be8 {[%emt 0:03:30]} 17. Ra1 {[%emt 0:07:30]} Qc5 {[%emt 0:01:30]} 18. Bxd5 {[%emt 0:00:00]} exd5 {[%emt 0:01:30]} 19. Bd4 {[%emt 0:00:00]} Qd6 {[%emt 0:00:30]} 20. Rxa7 {[%emt 0:00:30]} Bh5 {[%emt 0:01:30]} 21. Ra8+ {[%emt 0:00:30]} Kd7 {[%emt 0:00:30]} 22. Ne5+ {[%emt 0:07:30]} Ke8 {[%emt 0:00:30]} 23. Rxd8+ {[%emt 0:00:30]} Qxd8 {[%emt 0:01:30]} 24. Qg5 {[%emt 0:01:30]} Bf7 {[%emt 0:02:30]} 25. Qf5 {[%emt 0:01:30]} Bg8 {[%emt 0:00:30]} 26. Bb6 {[%emt 0:02:30]} g6 {[%emt 0:03:30]} 27. Qxf8+ {[%emt 0:00:30]} Kxf8 28. Bxd8 {[%emt 0:00:30]} d4 {[%emt 0:01:00]} 29. Ne2 {[%emt 0:00:30]} Bd5 {[%emt 0:00:30]} 1-0

[Event "TUR-ch Veterans 2019"]
[Site "Belek"]
[Date "2019.01.23"]
[Round "4.14"]
[White "Akinci, Ahmet"]
[Black "Cicek, Cemil"]
[Result "1-0"]
[ECO "D53"]
[WhiteElo "1402"]
[BlackElo "1999"]
[Annotator "NA"]
[PlyCount "67"]
[EventDate "2019.01.20"]
[EventType "swiss"]
[EventCountry "TUR"]
[SourceTitle "playchess.com"]
[Source "ChessBase"]
[SourceQuality "1"]
[TimeControl "5400+30"]

1. d4 {[%emt 0:01:30]} d5 {[%emt 0:00:30]} 2. Nf3 {[%emt 0:00:30]} Nf6 {[%emt 0:00:30]} 3. c4 {[%emt 0:00:00]} e6 {[%emt 0:00:00]} 4. Nc3 {[%emt 0:00:00]} c6 {[%emt 0:01:00]} 5. Bg5 {[%emt 0:01:30]} Nbd7 {[%emt 0:00:30]} 6. e3 {[%emt 0:05:30]} Be7 {[%emt 0:00:30]} 7. Bd3 {[%emt 0:00:30]} Qb6 {[%emt 0:01:30]} 8. Qc2 {[%emt 0:00:30]} h6 {[%emt 0:00:30]} 9. c5 {[%emt 0:01:30]} Qd8 {[%emt 0:00:30]} 10. Bh4 {[%emt 0:00:30]} b6 {[%emt 0:00:30]} 11. b4 {[%emt 0:01:30]} a5 {[%emt 0:00:30]} 12. b5 {[%emt 0:10:30]} bxc5 {[%emt 0:04:30]} 13. bxc6 {[%emt 0:00:30]} Nb6 {[%emt 0:01:30]} 14. Bb5 {[%emt 0:01:30]} O-O {[%emt 0:00:30]} 15. Ne5 {[%emt 0:04:30]} c4 {[%emt 0:00:30]} 16. O-O {[%emt 0:01:30]} Ne8 {[%emt 0:01:30]} 17. Bg3 {[%emt 0:02:30]} Nd6 {[%emt 0:01:30]} 18. a4 {[%emt 0:03:30]} Ba6 {[%emt 0:01:30]} 19. Rfb1 {[%emt 0:04:30]} Ndc8 {[%emt 0:02:30]} 20. e4 {[%emt 0:01:30]} Bb4 {[%emt 0:01:30]} 21. Ne2 {[%emt 0:02:30]} Bxb5 {[%emt 0:00:30]} 22. axb5 {[%emt 0:00:00]} Nd6 {[%emt 0:00:30]} 23. f3 {[%emt 0:02:00]} Nxb5 {[%emt 0:01:30]} 24. Bf2 {[%emt 0:02:30]} Na3 {[%emt 0:00:30]} 25. Rxa3 {[%emt 0:01:30]} Bxa3 {[%emt 0:00:30]} 26. exd5 {[%emt 0:02:30]} exd5 {[%emt 0:00:30]} 27. Qf5 {[%emt 0:00:30]} Bb4 {[%emt 0:00:30]} 28. Be3 {[%emt 0:01:30]} Qd6 {[%emt 0:02:30]} 29. Nf4 {[%emt 0:00:30]} f6 {[%emt 0:01:30]} 30. Ng4 {[%emt 0:03:30]} Rfe8 {[%emt 0:04:30]} 31. Qg6 {[%emt 0:11:30]} Kf8 {[%emt 0:02:30]} 32. Nh5 {[%emt 0:00:30]} Qe7 {[%emt 0:03:30]} 33. Nhxf6 {[%emt 0:05:30]} gxf6 {[%emt 0:00:30]} 34. Bxh6+ {[%emt 0:00:00]} 1-0